[Event "EYCC Girls-U18 2019"]
[Site "Bratislava"]
[Date "2019.08.03"]
[Round "2.9"]
[White "Cramling Bellon, Anna"]
[Black "Muetsch, Annmarie"]
[Result "1-0"]
[ECO "A45"]
[WhiteElo "2030"]
[BlackElo "2266"]
[Annotator "NA"]
[PlyCount "89"]
[EventDate "2019.08.02"]
[EventType "swiss"]
[EventCountry "SVK"]
[SourceTitle "playchess.com"]
[Source "ChessBase"]
[SourceQuality "1"]
[TimeControl "40/5400+30:1800+30"]

1. d4 {[%emt 0:00:00]} Nf6 {[%emt 0:00:00]} 2. Bg5 {[%emt 0:00:00]} d5 {[%emt 0:01:08]} 3. e3 {[%emt 0:00:00]} c5 {[%emt 0:00:21]} 4. Bxf6 {[%emt 0:00:22]} gxf6 {[%emt 0:00:08]} 5. Nc3 {[%emt 0:00:26]} e6 {[%emt 0:02:24]} 6. dxc5 {[%emt 0:12:48]} Nc6 {[%emt 0:04:21]} 7. Qh5 {[%emt 0:00:26]} Bxc5 {[%emt 0:04:46]} 8. O-O-O {[%emt 0:00:30]} Bb4 {[%emt 0:03:50]} 9. Nge2 {[%emt 0:15:48]} Qe7 {[%emt 0:10:42]} 10. e4 {[%emt 0:19:57]} Bxc3 {[%emt 0:08:08]} 11. Nxc3 {[%emt 0:00:04]} d4 {[%emt 0:00:07]} 12. Nb5 {[%emt 0:02:43]} e5 {[%emt 0:00:09]} 13. Bc4 {[%emt 0:00:15]} Rf8 {[%emt 0:02:51]} 14. f4 {[%emt 0:14:29]} a6 {[%emt 0:02:06]} 15. Na3 {[%emt 0:00:06]} Be6 {[%emt 0:03:57]} 16. fxe5 {[%emt 0:09:41]} fxe5 {[%emt 0:00:57]} 17. Bd5 {[%emt 0:00:12]} Rg8 {[%emt 0:11:13]} 18. Bxc6+ {[%emt 0:02:25]} bxc6 {[%emt 0:00:04]} 19. Qxe5 {[%emt 0:00:09]} c5 {[%emt 0:00:17]} 20. g3 {[%emt 0:02:36]} Qg5+ {[%emt 0:04:44]} 21. Qf4 {[%emt 0:01:49]} Qxf4+ {[%emt 0:04:08]} 22. gxf4 {[%emt 0:00:02]} Rg4 {[%emt 0:04:21]} 23. Rhg1 {[%emt 0:01:59]} Kf8 {[%emt 0:05:24]} 24. f5 {[%emt 0:01:53]} Rxg1 {[%emt 0:00:06]} 25. Rxg1 {[%emt 0:00:02]} Bd7 {[%emt 0:00:08]} 26. Nc4 {[%emt 0:00:46]} Bc6 {[%emt 0:02:57]} 27. e5 {[%emt 0:04:56]} Re8 {[%emt 0:00:26]} 28. Re1 {[%emt 0:00:51]} Ke7 {[%emt 0:17:27]} 29. Rg1 {[%emt 0:05:06]} Bd5 {[%emt 0:01:11]} 30. Nd6 {[%emt 0:00:43]} Rb8 {[%emt 0:02:53]} 31. Rg7 {[%emt 0:00:17]} a5 {[%emt 0:01:30]} 32. f6+ {[%emt 0:03:34]} Ke6 {[%emt 0:00:19]} 33. Nxf7 {[%emt 0:00:13]} Bxa2 {[%emt 0:02:39]} 34. Ng5+ {[%emt 0:01:15]} Kxe5 {[%emt 0:00:14]} 35. Nxh7 {[%emt 0:00:06]} c4 {[%emt 0:00:57]} 36. f7 {[%emt 0:00:25]} c3 {[%emt 0:00:22]} 37. b3 {[%emt 0:00:12]} a4 {[%emt 0:00:37]} 38. f8=Q {[%emt 0:00:22]} Rxf8 {[%emt 0:00:05]} 39. Nxf8 {[%emt 0:00:06]} axb3 {[%emt 0:00:11]} 40. cxb3 {[%emt 0:00:00]} d3 {[%emt 0:00:00]} 41. Rd7 {[%emt 0:05:21]} Ke4 {[%emt 0:01:37]} 42. Ne6 {[%emt 0:06:45]} Ke3 {[%emt 0:00:49]} 43. Nc5 {[%emt 0:01:05]} d2+ {[%emt 0:00:47]} 44. Kc2 {[%emt 0:05:13]} Ke2 {[%emt 0:00:14]} 45. Kxc3 {[%emt 0:10:41]} 1-0

[Event "EYCC Girls-U18 2019"]
[Site "Bratislava"]
[Date "2019.08.03"]
[Round "2.10"]
[White "Sibajeva, Marija"]
[Black "Sargsyan, Anna M."]
[Result "1-0"]
[ECO "B11"]
[WhiteElo "2031"]
[BlackElo "2229"]
[Annotator "NA"]
[PlyCount "115"]
[EventDate "2019.08.02"]
[EventType "swiss"]
[EventCountry "SVK"]
[SourceTitle "playchess.com"]
[Source "ChessBase"]
[SourceQuality "1"]
[TimeControl "40/5400+30:1800+30"]

1. e4 {[%emt 0:00:00]} c6 {[%emt 0:00:00]} 2. Nc3 {[%emt 0:00:00]} d5 {[%emt 0:00:00]} 3. Nf3 {[%emt 0:00:00]} Bg4 {[%emt 0:00:00]} 4. h3 {[%emt 0:00:08]} Bxf3 {[%emt 0:00:06]} 5. Qxf3 {[%emt 0:00:24]} Nf6 {[%emt 0:00:07]} 6. exd5 {[%emt 0:00:38]} cxd5 {[%emt 0:00:11]} 7. Bb5+ {[%emt 0:00:50]} Nc6 {[%emt 0:00:09]} 8. d4 {[%emt 0:02:37]} e6 {[%emt 0:00:06]} 9. O-O {[%emt 0:04:03]} Be7 {[%emt 0:03:32]} 10. Bf4 {[%emt 0:11:31]} O-O {[%emt 0:00:24]} 11. Ne2 {[%emt 0:05:53]} Qb6 {[%emt 0:02:36]} 12. Bxc6 {[%emt 0:00:27]} bxc6 {[%emt 0:00:21]} 13. Qb3 {[%emt 0:01:59]} c5 {[%emt 0:04:29]} 14. dxc5 {[%emt 0:02:30]} Qxc5 {[%emt 0:00:55]} 15. c3 {[%emt 0:01:53]} Ne4 {[%emt 0:03:19]} 16. Be3 {[%emt 0:10:19]} Qc7 {[%emt 0:01:10]} 17. Nd4 {[%emt 0:04:29]} Rab8 {[%emt 0:08:34]} 18. Qc2 {[%emt 0:00:46]} Bc5 {[%emt 0:12:54]} 19. Rac1 {[%emt 0:08:11]} Qb7 {[%emt 0:07:36]} 20. b4 {[%emt 0:08:57]} Bb6 {[%emt 0:05:36]} 21. Qd3 {[%emt 0:06:26]} Rbc8 {[%emt 0:08:56]} 22. a4 Rfd8 23. f3 {[%emt 0:06:26]} Nd6 {[%emt 0:04:35]} 24. Nb3 {[%emt 0:04:01]} Nc4 {[%emt 0:01:55]} 25. Nc5 {[%emt 0:02:12]} Qc6 {[%emt 0:06:52]} 26. Bf2 {[%emt 0:02:07]} Bxc5 {[%emt 0:07:48]} 27. Bxc5 {[%emt 0:00:19]} Nb2 {[%emt 0:00:04]} 28. Qe3 {[%emt 0:01:15]} a5 {[%emt 0:01:51]} 29. Bd4 {[%emt 0:01:45]} f6 {[%emt 0:00:54]} 30. b5 {[%emt 0:00:59]} Qd6 {[%emt 0:00:14]} 31. f4 {[%emt 0:06:39]} Re8 {[%emt 0:03:27]} 32. Rfe1 {[%emt 0:01:50]} Nc4 {[%emt 0:00:20]} 33. Qg3 Kh8 34. Re2 {[%emt 0:01:31]} Qd7 {[%emt 0:02:40]} 35. Rce1 {[%emt 0:01:44]} Nd6 {[%emt 0:00:06]} 36. Qd3 {[%emt 0:01:40]} Rc4 {[%emt 0:05:01]} 37. Ra1 {[%emt 0:00:36]} Rec8 {[%emt 0:01:05]} 38. Qe3 {[%emt 0:01:05]} Ne4 {[%emt 0:00:41]} 39. Ra3 {[%emt 0:02:17]} Qd6 {[%emt 0:03:59]} 40. Rb3 {[%emt 0:00:00]} e5 {[%emt 0:00:00]} 41. fxe5 {[%emt 0:01:20]} fxe5 {[%emt 0:01:20]} 42. Ba7 {[%emt 0:02:35]} Nxc3 {[%emt 0:11:37]} 43. Re1 {[%emt 0:02:42]} d4 {[%emt 0:11:28]} 44. Qxe5 {[%emt 0:01:07]} Qxe5 {[%emt 0:00:09]} 45. Rxe5 {[%emt 0:00:08]} d3 {[%emt 0:00:05]} 46. Be3 {[%emt 0:01:29]} h6 {[%emt 0:06:16]} 47. b6 {[%emt 0:03:16]} Rb4 {[%emt 0:05:34]} 48. b7 {[%emt 0:01:17]} Ne2+ {[%emt 0:00:05]} 49. Kh2 {[%emt 0:00:18]} Rb8 {[%emt 0:00:03]} 50. Rb5 {[%emt 0:12:24]} Rxb5 {[%emt 0:01:40]} 51. Rxb5 {[%emt 0:00:24]} Nc3 {[%emt 0:02:09]} 52. Rc5 Rxb7 {[%emt 0:00:52]} 53. Rxc3 {[%emt 0:00:38]} Rb4 {[%emt 0:00:07]} 54. Ra3 {[%emt 0:00:24]} Kg8 {[%emt 0:00:08]} 55. Bd2 {[%emt 0:00:59]} Rd4 {[%emt 0:00:02]} 56. Kg3 {[%emt 0:00:56]} Kf7 {[%emt 0:00:01]} 57. Kf3 {[%emt 0:00:14]} Re4 58. Kxe4 1-0

[Event "EYCC Girls-U18 2019"]
[Site "Bratislava"]
[Date "2019.08.03"]
[Round "2.11"]
[White "Radeva, Viktoria"]
[Black "Grigoryan, Arpine"]
[Result "1/2-1/2"]
[ECO "C15"]
[WhiteElo "2247"]
[BlackElo "1996"]
[Annotator "NA"]
[PlyCount "125"]
[EventDate "2019.08.02"]
[EventType "swiss"]
[EventCountry "SVK"]
[SourceTitle "playchess.com"]
[Source "ChessBase"]
[SourceQuality "1"]
[TimeControl "40/5400+30:1800+30"]

1. e4 {[%emt 0:00:00]} e6 {[%emt 0:00:00]} 2. d4 {[%emt 0:00:00]} d5 {[%emt 0:00:00]} 3. Nc3 {[%emt 0:00:00]} Bb4 {[%emt 0:00:46]} 4. exd5 {[%emt 0:00:00]} exd5 {[%emt 0:00:42]} 5. Bd3 {[%emt 0:00:01]} Nf6 {[%emt 0:03:20]} 6. Nge2 {[%emt 0:00:14]} O-O {[%emt 0:02:09]} 7. O-O {[%emt 0:00:37]} h6 {[%emt 0:01:46]} 8. Bf4 {[%emt 0:00:58]} Nc6 {[%emt 0:02:54]} 9. a3 {[%emt 0:15:06]} Bd6 {[%emt 0:02:11]} 10. Qd2 {[%emt 0:06:09]} Bxf4 {[%emt 0:09:28]} 11. Qxf4 {[%emt 0:00:26]} Be6 {[%emt 0:00:12]} 12. Rfe1 {[%emt 0:09:10]} Qd7 {[%emt 0:06:40]} 13. Ng3 {[%emt 0:03:25]} Ne7 {[%emt 0:01:45]} 14. Nb5 {[%emt 0:12:34]} Rfc8 {[%emt 0:04:43]} 15. Re2 {[%emt 0:02:57]} a6 {[%emt 0:03:46]} 16. Nc3 {[%emt 0:01:00]} Rf8 {[%emt 0:03:02]} 17. Rae1 {[%emt 0:02:54]} Rae8 {[%emt 0:03:16]} 18. f3 {[%emt 0:05:45]} b5 {[%emt 0:06:39]} 19. Nd1 {[%emt 0:05:47]} a5 {[%emt 0:03:29]} 20. Qd2 {[%emt 0:02:50]} a4 {[%emt 0:05:36]} 21. Ne3 {[%emt 0:03:44]} c6 {[%emt 0:03:24]} 22. c3 {[%emt 0:03:12]} Qc7 {[%emt 0:07:50]} 23. Nc2 {[%emt 0:04:10]} Qd6 {[%emt 0:05:33]} 24. Nb4 {[%emt 0:02:15]} Ng6 {[%emt 0:02:52]} 25. Bxg6 {[%emt 0:02:10]} fxg6 {[%emt 0:00:05]} 26. Nd3 {[%emt 0:00:33]} Nd7 {[%emt 0:01:49]} 27. Ne5 {[%emt 0:01:21]} Nxe5 {[%emt 0:01:33]} 28. Rxe5 {[%emt 0:00:39]} Bf7 {[%emt 0:00:12]} 29. Rxe8 {[%emt 0:02:45]} Rxe8 {[%emt 0:00:04]} 30. Rxe8+ {[%emt 0:00:09]} Bxe8 {[%emt 0:00:04]} 31. Qe3 {[%emt 0:00:17]} Bf7 {[%emt 0:00:55]} 32. Ne2 {[%emt 0:02:54]} g5 {[%emt 0:02:01]} 33. f4 {[%emt 0:04:14]} gxf4 {[%emt 0:00:40]} 34. Nxf4 {[%emt 0:00:10]} Bg6 {[%emt 0:01:12]} 35. Qe6+ {[%emt 0:03:52]} Qxe6 {[%emt 0:00:04]} 36. Nxe6 {[%emt 0:00:06]} Bf5 {[%emt 0:01:45]} 37. Nc5 {[%emt 0:02:13]} Kf7 {[%emt 0:01:07]} 38. Kf2 {[%emt 0:00:04]} Ke7 {[%emt 0:00:21]} 39. Kf3 {[%emt 0:01:45]} Kd6 {[%emt 0:00:06]} 40. Kf4 {[%emt 0:00:00]} Bc2 {[%emt 0:00:00]} 41. h4 {[%emt 0:02:21]} g6 {[%emt 0:04:54]} 42. g3 {[%emt 0:08:54]} Bb1 {[%emt 0:01:32]} 43. g4 {[%emt 0:05:12]} Bc2 {[%emt 0:00:13]} 44. Nb7+ {[%emt 0:00:30]} Kc7 {[%emt 0:00:07]} 45. Nc5 {[%emt 0:00:06]} Kd6 {[%emt 0:00:03]} 46. g5 {[%emt 0:02:14]} h5 {[%emt 0:00:22]} 47. Ke3 {[%emt 0:07:30]} Bf5 {[%emt 0:02:08]} 48. b3 {[%emt 0:01:35]} axb3 {[%emt 0:00:16]} 49. Nxb3 {[%emt 0:00:02]} Bc2 {[%emt 0:00:59]} 50. Nc5 {[%emt 0:00:09]} Bf5 {[%emt 0:00:09]} 51. Kd2 {[%emt 0:00:39]} Kc7 {[%emt 0:08:20]} 52. Kc1 {[%emt 0:00:09]} Bg4 {[%emt 0:00:52]} 53. Kc2 {[%emt 0:00:51]} Kb6 {[%emt 0:01:42]} 54. Kb3 {[%emt 0:00:07]} Ka5 {[%emt 0:00:35]} 55. Nd3 {[%emt 0:00:47]} Bf5 {[%emt 0:00:46]} 56. Ne5 {[%emt 0:01:57]} Kb6 {[%emt 0:00:52]} 57. Kb4 {[%emt 0:00:07]} Bc2 {[%emt 0:00:39]} 58. Nd7+ {[%emt 0:02:39]} Kc7 {[%emt 0:00:06]} 59. Nc5 {[%emt 0:00:11]} Kb6 {[%emt 0:00:34]} 60. Ne6 {[%emt 0:00:48]} Bf5 {[%emt 0:00:40]} 61. Nc5 {[%emt 0:02:57]} Bc2 {[%emt 0:00:06]} 62. Nd7+ {[%emt 0:00:33]} Kc7 {[%emt 0:00:26]} 63. Nc5 {[%emt 0:03:26]} 1/2-1/2

[Event "EYCC Girls-U18 2019"]
[Site "Bratislava"]
[Date "2019.08.03"]
[Round "2.12"]
[White "Kocyigit, Buse Naz"]
[Black "Urh, Zala"]
[Result "1/2-1/2"]
[ECO "C65"]
[WhiteElo "2045"]
[BlackElo "2072"]
[Annotator "NA"]
[PlyCount "112"]
[EventDate "2019.08.02"]
[EventType "swiss"]
[EventCountry "SVK"]
[SourceTitle "playchess.com"]
[Source "ChessBase"]
[SourceQuality "1"]
[TimeControl "40/5400+30:1800+30"]

1. e4 {[%emt 0:00:00]} e5 {[%emt 0:00:00]} 2. Nf3 {[%emt 0:00:00]} Nc6 {[%emt 0:00:00]} 3. Bb5 {[%emt 0:00:00]} Nf6 {[%emt 0:00:00]} 4. d3 {[%emt 0:00:00]} Bc5 {[%emt 0:00:39]} 5. O-O {[%emt 0:00:05]} Nd4 {[%emt 0:00:33]} 6. Nxd4 {[%emt 0:03:42]} Bxd4 {[%emt 0:00:07]} 7. c3 {[%emt 0:01:02]} Bb6 {[%emt 0:00:06]} 8. Bg5 {[%emt 0:01:23]} h6 {[%emt 0:02:01]} 9. Bh4 {[%emt 0:02:07]} c6 {[%emt 0:01:06]} 10. Ba4 {[%emt 0:00:23]} g5 {[%emt 0:01:18]} 11. Bg3 {[%emt 0:00:02]} d6 {[%emt 0:00:12]} 12. Kh1 {[%emt 0:13:13]} O-O {[%emt 0:06:16]} 13. Bc2 {[%emt 0:06:53]} Qe7 {[%emt 0:05:43]} 14. f3 {[%emt 0:09:24]} Nh5 {[%emt 0:02:44]} 15. Bf2 {[%emt 0:00:15]} Bxf2 {[%emt 0:00:31]} 16. Rxf2 {[%emt 0:00:01]} f5 {[%emt 0:00:34]} 17. exf5 {[%emt 0:23:57]} Bxf5 {[%emt 0:02:28]} 18. Na3 {[%emt 0:00:01]} Nf4 {[%emt 0:02:57]} 19. Qd2 {[%emt 0:03:40]} Rae8 {[%emt 0:02:39]} 20. Rff1 {[%emt 0:01:07]} Qf6 {[%emt 0:02:52]} 21. Rae1 {[%emt 0:11:06]} d5 {[%emt 0:06:15]} 22. d4 {[%emt 0:06:31]} exd4 {[%emt 0:03:54]} 23. Bxf5 {[%emt 0:02:16]} Qxf5 {[%emt 0:04:39]} 24. cxd4 {[%emt 0:04:17]} Qd3 {[%emt 0:08:12]} 25. Rd1 {[%emt 0:00:30]} Qxd2 {[%emt 0:00:30]} 26. Rxd2 {[%emt 0:00:01]} Re6 {[%emt 0:00:28]} 27. g3 {[%emt 0:03:26]} Ng6 {[%emt 0:00:10]} 28. Kg2 {[%emt 0:00:33]} Rfe8 {[%emt 0:00:34]} 29. Nc2 {[%emt 0:00:36]} Kg7 {[%emt 0:02:36]} 30. Rdd1 {[%emt 0:00:47]} Ne7 {[%emt 0:02:27]} 31. Rde1 {[%emt 0:01:00]} Nf5 {[%emt 0:01:06]} 32. Kf2 {[%emt 0:00:45]} Kf6 {[%emt 0:00:48]} 33. Rxe6+ {[%emt 0:00:52]} Rxe6 {[%emt 0:00:01]} 34. Re1 {[%emt 0:00:23]} Rxe1 {[%emt 0:02:36]} 35. Kxe1 {[%emt 0:00:02]} Ke6 {[%emt 0:00:21]} 36. b4 {[%emt 0:02:19]} b6 {[%emt 0:03:19]} 37. Ke2 {[%emt 0:00:28]} h5 {[%emt 0:05:05]} 38. g4 {[%emt 0:04:46]} hxg4 {[%emt 0:02:06]} 39. fxg4 {[%emt 0:00:01]} Nd6 {[%emt 0:00:01]} 40. Ne1 {[%emt 0:00:00]} Ne4 {[%emt 0:00:00]} 41. a3 {[%emt 0:06:56]} Kd6 {[%emt 0:05:00]} 42. Ke3 {[%emt 0:05:12]} c5 {[%emt 0:03:23]} 43. dxc5+ {[%emt 0:00:14]} bxc5 {[%emt 0:00:05]} 44. bxc5+ {[%emt 0:00:30]} Nxc5 {[%emt 0:00:16]} 45. Nf3 {[%emt 0:03:26]} Ne6 {[%emt 0:00:10]} 46. h4 gxh4 {[%emt 0:02:08]} 47. Nxh4 {[%emt 0:00:38]} Kc5 {[%emt 0:02:25]} 48. Nf3 {[%emt 0:00:23]} Kc4 {[%emt 0:02:09]} 49. g5 {[%emt 0:00:38]} Kc3 {[%emt 0:00:55]} 50. g6 {[%emt 0:06:35]} d4+ {[%emt 0:01:10]} 51. Nxd4 {[%emt 0:07:36]} Nxd4 {[%emt 0:00:24]} 52. Ke4 {[%emt 0:00:12]} Ne6 {[%emt 0:11:09]} 53. Ke5 {[%emt 0:00:44]} Ng7 {[%emt 0:00:11]} 54. Kf6 {[%emt 0:00:12]} Nh5+ {[%emt 0:00:05]} 55. Kg5 {[%emt 0:00:22]} Ng7 {[%emt 0:00:03]} 56. Kf6 {[%emt 0:00:09]} Nh5+ 1/2-1/2

[Event "EYCC Girls-U18 2019"]
[Site "Bratislava"]
[Date "2019.08.03"]
[Round "2.13"]
[White "Olde, Grete"]
[Black "Ziegenfuss, Antonia"]
[Result "1-0"]
[ECO "B25"]
[WhiteElo "1955"]
[BlackElo "2063"]
[Annotator "NA"]
[PlyCount "111"]
[EventDate "2019.08.02"]
[EventType "swiss"]
[EventCountry "SVK"]
[SourceTitle "playchess.com"]
[Source "ChessBase"]
[SourceQuality "1"]
[TimeControl "40/5400+30:1800+30"]

1. e4 {[%emt 0:00:00]} c5 {[%emt 0:00:00]} 2. Nc3 {[%emt 0:00:00]} Nc6 {[%emt 0:00:00]} 3. g3 {[%emt 0:00:00]} g6 {[%emt 0:00:00]} 4. Bg2 {[%emt 0:00:00]} Bg7 {[%emt 0:00:00]} 5. d3 {[%emt 0:00:00]} d6 {[%emt 0:00:00]} 6. f4 {[%emt 0:00:07]} e6 {[%emt 0:00:02]} 7. Nf3 {[%emt 0:00:10]} Nge7 {[%emt 0:00:05]} 8. O-O {[%emt 0:00:10]} O-O {[%emt 0:00:05]} 9. Be3 {[%emt 0:00:10]} b6 {[%emt 0:00:10]} 10. Bf2 {[%emt 0:01:14]} Ba6 {[%emt 0:00:21]} 11. Re1 {[%emt 0:01:05]} Qc7 {[%emt 0:13:00]} 12. d4 {[%emt 0:05:55]} Rad8 {[%emt 0:04:29]} 13. a4 {[%emt 0:11:55]} Rfe8 {[%emt 0:09:33]} 14. g4 {[%emt 0:08:43]} f5 {[%emt 0:10:02]} 15. exf5 {[%emt 0:09:22]} exf5 {[%emt 0:00:36]} 16. Ng5 {[%emt 0:01:08]} Bc4 {[%emt 0:16:20]} 17. d5 {[%emt 0:17:32]} Nd4 {[%emt 0:02:14]} 18. Bxd4 {[%emt 0:01:14]} Bxd4+ {[%emt 0:00:07]} 19. Kh1 {[%emt 0:00:03]} Bxc3 {[%emt 0:05:26]} 20. Ne6 {[%emt 0:04:13]} Qd7 {[%emt 0:02:08]} 21. bxc3 {[%emt 0:00:40]} Rb8 {[%emt 0:00:55]} 22. gxf5 {[%emt 0:02:44]} Nxf5 {[%emt 0:02:54]} 23. Be4 {[%emt 0:01:39]} Qb7 {[%emt 0:07:58]} 24. Qd2 {[%emt 0:04:42]} Ng7 {[%emt 0:08:37]} 25. f5 {[%emt 0:06:38]} gxf5 {[%emt 0:02:34]} 26. Nxg7 {[%emt 0:03:38]} Rxe4 {[%emt 0:01:54]} 27. Nxf5 {[%emt 0:02:20]} Rxe1+ {[%emt 0:03:00]} 28. Rxe1 {[%emt 0:00:02]} Qxd5+ {[%emt 0:01:54]} 29. Qxd5+ {[%emt 0:00:03]} Bxd5+ {[%emt 0:00:06]} 30. Kg1 {[%emt 0:00:04]} Kh8 {[%emt 0:00:39]} 31. Nxd6 {[%emt 0:06:06]} Rd8 {[%emt 0:01:42]} 32. Nf5 {[%emt 0:04:59]} Rg8+ {[%emt 0:02:44]} 33. Ng3 {[%emt 0:01:45]} Bc6 {[%emt 0:04:01]} 34. a5 {[%emt 0:02:29]} bxa5 {[%emt 0:01:59]} 35. Re5 {[%emt 0:00:15]} a4 {[%emt 0:00:53]} 36. Rxc5 {[%emt 0:00:09]} Rc8 {[%emt 0:00:35]} 37. Ra5 {[%emt 0:01:50]} Rc7 {[%emt 0:00:17]} 38. Kf2 {[%emt 0:00:54]} Rb7 {[%emt 0:00:26]} 39. Ke3 {[%emt 0:01:08]} Kg8 {[%emt 0:00:44]} 40. Ne2 {[%emt 0:00:00]} Re7+ {[%emt 0:00:00]} 41. Kd2 {[%emt 0:06:34]} Rg7 {[%emt 0:08:19]} 42. Ng3 {[%emt 0:04:11]} Kf8 {[%emt 0:04:42]} 43. c4 {[%emt 0:02:57]} Ke8 {[%emt 0:02:49]} 44. Ra6 {[%emt 0:01:29]} Rc7 {[%emt 0:02:11]} 45. Nf5 {[%emt 0:01:52]} Bd7 {[%emt 0:03:02]} 46. Ne3 {[%emt 0:01:05]} Kd8 {[%emt 0:01:25]} 47. Kc3 {[%emt 0:02:16]} Kc8 {[%emt 0:06:17]} 48. Nd5 {[%emt 0:02:28]} Rb7 {[%emt 0:00:44]} 49. Nf6 {[%emt 0:01:21]} Bf5 {[%emt 0:04:42]} 50. Ne8 {[%emt 0:02:20]} Bd7 {[%emt 0:01:38]} 51. Nd6+ {[%emt 0:00:19]} Kc7 {[%emt 0:00:06]} 52. Nxb7 {[%emt 0:00:08]} Kxb7 {[%emt 0:00:03]} 53. Rf6 {[%emt 0:01:22]} Be8 {[%emt 0:00:43]} 54. Kb4 {[%emt 0:01:28]} Bg6 {[%emt 0:00:44]} 55. c3 {[%emt 0:01:37]} Bc2 {[%emt 0:00:15]} 56. Rf2 {[%emt 0:00:14]} 1-0

[Event "EYCC Girls-U18 2019"]
[Site "Bratislava"]
[Date "2019.08.03"]
[Round "2.14"]
[White "Kochukova, Anna"]
[Black "Mocanu, Valeria"]
[Result "1/2-1/2"]
[ECO "C77"]
[WhiteElo "2148"]
[BlackElo "1769"]
[Annotator "NA"]
[PlyCount "138"]
[EventDate "2019.08.02"]
[EventType "swiss"]
[EventCountry "SVK"]
[SourceTitle "playchess.com"]
[Source "ChessBase"]
[SourceQuality "1"]
[TimeControl "40/5400+30:1800+30"]

1. e4 {[%emt 0:00:00]} e5 {[%emt 0:00:00]} 2. Nf3 {[%emt 0:00:00]} Nc6 {[%emt 0:00:00]} 3. Bb5 {[%emt 0:00:00]} a6 {[%emt 0:00:00]} 4. Ba4 {[%emt 0:00:11]} Nf6 {[%emt 0:00:00]} 5. d3 {[%emt 0:00:10]} d6 {[%emt 0:00:15]} 6. c3 {[%emt 0:00:14]} g6 {[%emt 0:00:30]} 7. O-O {[%emt 0:00:36]} Bg7 {[%emt 0:00:14]} 8. Nbd2 {[%emt 0:00:28]} O-O {[%emt 0:00:12]} 9. Re1 {[%emt 0:00:36]} b5 {[%emt 0:00:15]} 10. Bc2 {[%emt 0:00:39]} Bb7 {[%emt 0:00:40]} 11. a4 {[%emt 0:00:43]} b4 {[%emt 0:00:17]} 12. a5 {[%emt 0:01:58]} Rb8 {[%emt 0:00:40]} 13. d4 {[%emt 0:15:56]} bxc3 {[%emt 0:21:18]} 14. bxc3 {[%emt 0:00:31]} exd4 {[%emt 0:05:04]} 15. cxd4 {[%emt 0:00:21]} Nb4 {[%emt 0:00:42]} 16. Bb1 {[%emt 0:02:02]} c5 {[%emt 0:09:10]} 17. Bb2 {[%emt 0:04:34]} Nh5 {[%emt 0:08:30]} 18. Nf1 {[%emt 0:09:56]} Nf4 {[%emt 0:08:41]} 19. Qd2 {[%emt 0:01:53]} Ne6 {[%emt 0:01:53]} 20. Bc3 {[%emt 0:05:10]} Ba8 {[%emt 0:04:53]} 21. Ne3 {[%emt 0:10:06]} Nc7 {[%emt 0:12:57]} 22. dxc5 {[%emt 0:02:02]} dxc5 {[%emt 0:02:49]} 23. Qc1 {[%emt 0:08:05]} Bxc3 {[%emt 0:04:58]} 24. Qxc3 {[%emt 0:00:08]} Ne6 {[%emt 0:00:17]} 25. Ng4 {[%emt 0:14:30]} f6 {[%emt 0:05:07]} 26. e5 {[%emt 0:04:17]} Nd5 {[%emt 0:00:43]} 27. Qc1 {[%emt 0:06:09]} f5 {[%emt 0:00:38]} 28. Ne3 {[%emt 0:02:02]} Nxe3 {[%emt 0:00:51]} 29. Qxe3 {[%emt 0:01:52]} Kg7 {[%emt 0:02:07]} 30. Ba2 {[%emt 0:00:50]} f4 {[%emt 0:03:27]} 31. Qc3 {[%emt 0:02:03]} Nd4 {[%emt 0:04:05]} 32. e6 {[%emt 0:04:02]} Qf6 {[%emt 0:00:10]} 33. Nxd4 {[%emt 0:01:07]} Qxd4 {[%emt 0:00:31]} 34. Qxd4+ {[%emt 0:01:06]} cxd4 {[%emt 0:00:04]} 35. Bc4 {[%emt 0:00:41]} Rfe8 {[%emt 0:01:22]} 36. Rad1 {[%emt 0:00:51]} Rbd8 {[%emt 0:02:03]} 37. Bxa6 {[%emt 0:01:02]} Rd5 {[%emt 0:00:49]} 38. Bc4 {[%emt 0:00:58]} Rd6 {[%emt 0:01:17]} 39. f3 {[%emt 0:00:35]} Kf6 {[%emt 0:00:21]} 40. Rd2 {[%emt 0:00:00]} Bb7 {[%emt 0:00:00]} 41. Kf2 {[%emt 0:05:50]} g5 {[%emt 0:06:08]} 42. Rb1 {[%emt 0:06:43]} Ba6 {[%emt 0:04:09]} 43. Ba2 {[%emt 0:03:13]} Rc8 {[%emt 0:05:52]} 44. Rb6 {[%emt 0:02:42]} Rxb6 {[%emt 0:03:27]} 45. axb6 {[%emt 0:00:02]} d3 {[%emt 0:01:24]} 46. Bd5 {[%emt 0:04:58]} Rc2 {[%emt 0:03:42]} 47. Ke1 {[%emt 0:00:02]} Rc1+ {[%emt 0:00:16]} 48. Rd1 {[%emt 0:00:33]} Rc2 {[%emt 0:01:10]} 49. Ra1 {[%emt 0:04:41]} Bc8 {[%emt 0:05:13]} 50. b7 {[%emt 0:03:13]} Bxb7 {[%emt 0:00:04]} 51. Bxb7 {[%emt 0:00:06]} Rxg2 {[%emt 0:00:17]} 52. Ra6 {[%emt 0:01:46]} Rxh2 {[%emt 0:00:31]} 53. Bd5 {[%emt 0:01:06]} Re2+ {[%emt 0:00:29]} 54. Kd1 {[%emt 0:01:00]} Re5 {[%emt 0:03:19]} 55. Bc4 {[%emt 0:00:07]} Rc5 {[%emt 0:02:52]} 56. Bxd3 {[%emt 0:02:19]} h5 {[%emt 0:00:16]} 57. Bb1 {[%emt 0:00:47]} g4 {[%emt 0:00:20]} 58. fxg4 {[%emt 0:00:36]} hxg4 {[%emt 0:00:04]} 59. Ba2 {[%emt 0:00:35]} Rc7 {[%emt 0:00:56]} 60. Ra8 {[%emt 0:00:43]} Ke7 {[%emt 0:01:08]} 61. Rg8 {[%emt 0:00:23]} g3 {[%emt 0:00:27]} 62. Rg7+ {[%emt 0:00:34]} Kd6 {[%emt 0:00:05]} 63. Rxc7 {[%emt 0:00:33]} Kxc7 {[%emt 0:00:04]} 64. Ke2 {[%emt 0:00:18]} g2 {[%emt 0:00:04]} 65. Kf2 {[%emt 0:00:05]} f3 {[%emt 0:00:03]} 66. Bb3 {[%emt 0:01:05]} Kd6 {[%emt 0:00:07]} 67. Kg1 {[%emt 0:00:25]} Ke7 {[%emt 0:00:04]} 68. Bd5 {[%emt 0:00:07]} Kd6 {[%emt 0:00:07]} 69. Kf2 {[%emt 0:00:29]} Ke7 {[%emt 0:00:05]} 1/2-1/2

[Event "EYCC Girls-U18 2019"]
[Site "Bratislava"]
[Date "2019.08.03"]
[Round "2.15"]
[White "Tonso, Liina"]
[Black "Nilssen, Ellen Fredericia"]
[Result "0-1"]
[ECO "D85"]
[WhiteElo "1791"]
[BlackElo "2155"]
[Annotator "NA"]
[PlyCount "56"]
[EventDate "2019.08.02"]
[EventType "swiss"]
[EventCountry "SVK"]
[SourceTitle "playchess.com"]
[Source "ChessBase"]
[SourceQuality "1"]
[TimeControl "40/5400+30:1800+30"]

1. d4 {[%emt 0:00:00]} Nf6 {[%emt 0:00:00]} 2. c4 {[%emt 0:00:00]} g6 {[%emt 0:00:00]} 3. Nc3 {[%emt 0:00:00]} d5 {[%emt 0:00:00]} 4. cxd5 {[%emt 0:00:07]} Nxd5 {[%emt 0:00:00]} 5. Bd2 {[%emt 0:00:11]} Bg7 {[%emt 0:00:49]} 6. e4 {[%emt 0:00:31]} Nxc3 {[%emt 0:01:51]} 7. Bxc3 {[%emt 0:00:14]} O-O {[%emt 0:01:26]} 8. Qd2 {[%emt 0:02:52]} Nd7 {[%emt 0:03:56]} 9. Nf3 {[%emt 0:03:42]} c5 {[%emt 0:02:21]} 10. d5 {[%emt 0:03:20]} Nf6 {[%emt 0:04:09]} 11. Bd3 {[%emt 0:08:02]} a6 {[%emt 0:07:29]} 12. a4 {[%emt 0:05:15]} Bd7 {[%emt 0:00:08]} 13. a5 {[%emt 0:06:35]} Bb5 {[%emt 0:03:47]} 14. O-O {[%emt 0:03:50]} e6 {[%emt 0:07:52]} 15. Bxf6 {[%emt 0:16:51]} Bxf6 {[%emt 0:00:17]} 16. e5 {[%emt 0:03:34]} Bg7 {[%emt 0:00:51]} 17. d6 {[%emt 0:01:40]} Bc6 {[%emt 0:01:21]} 18. Qe3 {[%emt 0:04:17]} Bxf3 {[%emt 0:13:25]} 19. gxf3 {[%emt 0:01:04]} Qh4 {[%emt 0:02:02]} 20. b3 {[%emt 0:04:48]} Bh6 {[%emt 0:00:36]} 21. Qxc5 {[%emt 0:08:03]} Bf4 {[%emt 0:00:28]} 22. Rfe1 {[%emt 0:01:25]} Qh3 {[%emt 0:00:09]} 23. Qc2 {[%emt 0:02:34]} Bxh2+ {[%emt 0:00:17]} 24. Kh1 {[%emt 0:00:06]} Bxe5+ {[%emt 0:00:15]} 25. Kg1 {[%emt 0:00:08]} Bh2+ {[%emt 0:00:13]} 26. Kh1 {[%emt 0:00:04]} Bxd6+ {[%emt 0:00:08]} 27. Kg1 {[%emt 0:00:05]} Bh2+ {[%emt 0:00:17]} 28. Kh1 {[%emt 0:00:07]} Be5+ {[%emt 0:00:26]} 0-1